bitfinex-derivatives/quotes_BTCF0:USTF0_20250416
["timestamp","ask_amount","ask_price","bid_price","bid_amount"]
[1744793574684,0.1789813,83815.0,83814.0,0.2767819]
[1744793574988,0.1829813,83815.0,83814.0,0.0517]
[1744793575179,0.1829813,83815.0,83814.0,0.1710213]
[1744793576389,0.1829813,83815.0,83814.0,0.001]
[1744793576578,0.1829813,83815.0,83812.0,0.12829064]
[1744793576579,0.1193227,83813.0,83812.0,0.12829064]
[1744793576785,0.1193227,83813.0,83812.0,0.1193241]
[1744793576984,0.1670227,83813.0,83812.0,0.1193241]
[1744793577284,0.2142227,83813.0,83812.0,0.1193241]
[1744793577886,0.2192227,83813.0,83812.0,0.1203241]
[1744793578890,0.1750227,83813.0,83812.0,0.2190241]
[1744793579596,0.1273227,83813.0,83812.0,0.2279978]
[1744793579899,0.1284027,83813.0,83812.0,0.2279978]
[1744793580099,0.2237027,83813.0,83812.0,0.2279978]
[1744793580398,0.2227027,83813.0,83812.0,0.1780978]
[1744793580907,0.2207027,83813.0,83812.0,0.1780978]
[1744793581204,0.2207027,83813.0,83812.0,0.0099737]
[1744793581491,0.2207027,83813.0,83812.0,0.001]
[1744793581696,0.2671027,83813.0,83812.0,0.1203242]
[1744793582297,0.2661027,83813.0,83812.0,0.1203242]
[1744793583192,0.2671027,83813.0,83812.0,0.1193242]
[1744793583391,0.2691027,83813.0,83812.0,0.1707242]
[1744793583792,0.2641027,83813.0,83812.0,0.1697242]
[1744793583986,0.2711027,83813.0,83812.0,0.1707242]
[1744793584187,0.2711027,83813.0,83812.0,0.1203242]
[1744793584495,0.2691027,83813.0,83812.0,0.1203242]
[1744793585195,0.1274027,83813.0,83812.0,0.1702242]
[1744793585388,0.1274027,83813.0,83812.0,0.2189242]
[1744793585586,0.1244027,83813.0,83812.0,0.2689242]
[1744793585796,0.1263227,83813.0,83812.0,0.2689242]
[1744793585993,0.1264027,83813.0,83812.0,0.2689242]
[1744793586298,0.1263227,83813.0,83812.0,0.2689242]
[1744793586485,0.2222027,83813.0,83812.0,0.2679242]
[1744793586687,0.2282027,83813.0,83812.0,0.1702242]
[1744793587087,0.2222027,83813.0,83812.0,0.1692242]
[1744793587294,0.2262027,83813.0,83812.0,0.1702242]
[1744793587495,0.2262027,83813.0,83812.0,0.2200242]
[1744793587796,0.1254027,83813.0,83812.0,0.2200242]
[1744793589685,0.1746027,83813.0,83812.0,0.2200242]
[1744793589889,0.1726027,83813.0,83812.0,0.2200242]
[1744793590097,0.1736027,83813.0,83812.0,0.2200242]
[1744793590288,0.1736027,83813.0,83812.0,0.2190242]
[1744793590488,0.1726027,83813.0,83812.0,0.2190242]
[1744793591692,0.1716027,83813.0,83812.0,0.2190242]
[1744793591899,0.1736027,83813.0,83812.0,0.2190242]
[1744793592494,0.1716027,83813.0,83812.0,0.2190242]
[1744793592799,0.1726027,83813.0,83812.0,0.2190242]
[1744793592996,0.1696027,83813.0,83812.0,0.2190242]
[1744793593200,0.1726027,83813.0,83812.0,0.2190242]
[1744793594305,0.00408,83813.0,83812.0,0.2290242]
[1744793594598,0.1233227,83813.0,83812.0,0.2290242]
[1744793595099,0.1234027,83813.0,83812.0,0.2290242]
[1744793595303,0.1695027,83813.0,83812.0,0.2290242]
[1744793595490,0.1705027,83813.0,83812.0,0.1097]
[1744793595695,0.0596654,83808.0,83796.0,0.08744]
[1744793595890,0.1790005,83806.0,83805.0,0.1668339]
[1744793596704,0.2738005,83806.0,83805.0,0.1668339]
[1744793597088,0.2768005,83806.0,83805.0,0.1668339]
[1744793597497,0.2818005,83806.0,83805.0,0.1678339]
[1744793598111,0.2818005,83806.0,83805.0,0.12934336]
[1744793598406,0.2332005,83806.0,83805.0,0.22834336]
[1744793598594,0.2302005,83806.0,83805.0,0.22834336]
[1744793598795,0.2332005,83806.0,83805.0,0.22834336]
[1744793599001,0.2282805,83806.0,83805.0,0.22834336]
[1744793599198,0.2332805,83806.0,83805.0,0.22834336]
[1744793599499,0.2322805,83806.0,83805.0,0.22834336]
[1744793599691,0.1119464,83806.0,83805.0,0.22834336]
[1744793600290,0.00608,83806.0,83805.0,0.22834336]
[1744793600497,0.00608,83806.0,83805.0,0.24834336]
[1744793600691,0.00608,83806.0,83805.0,0.24734336]
[1744793600692,0.002,83806.0,83805.0,0.24734336]
[1744793600998,0.00608,83806.0,83805.0,0.24834336]
[1744793601504,0.00608,83806.0,83805.0,0.14934336]
[1744793601800,0.00608,83806.0,83805.0,0.01000946]
[1744793601801,0.1254127,83806.0,83805.0,0.01000946]
[1744793602192,0.2222127,83806.0,83805.0,0.12934356]
[1744793602393,0.2202127,83806.0,83805.0,0.1213341]
[1744793603094,0.00408,83806.0,83805.0,0.1213341]
[1744793603411,0.00308,83806.0,83805.0,0.2176341]
[1744793603701,0.009,83806.0,83805.0,0.2186341]
[1744793603903,0.00908,83806.0,83805.0,0.2186341]
[1744793604097,0.1284127,83806.0,83805.0,0.0993]
[1744793604503,0.2252127,83806.0,83805.0,0.2186341]
[1744793605000,0.2222127,83806.0,83805.0,0.2186341]
[1744793605203,0.2252127,83806.0,83805.0,0.2186341]
[1744793605403,0.2192127,83806.0,83805.0,0.0481]
[1744793605602,0.2222127,83806.0,83805.0,0.001]
[1744793605796,0.2192127,83806.0,83805.0,0.001]
[1744793605999,0.2222127,83806.0,83805.0,0.001]
[1744793606205,0.1193341,83805.0,83804.0,0.1692355]
[1744793606401,0.1193341,83805.0,83804.0,0.0499]
[1744793606707,0.2130341,83805.0,83804.0,0.1692355]
[1744793608797,0.1664341,83805.0,83804.0,0.1692355]
[1744793609002,0.1714341,83805.0,83804.0,0.1702355]
[1744793609211,0.1744341,83805.0,83804.0,0.22782167]
[1744793609503,0.1695141,83805.0,83804.0,0.22682167]
[1744793609704,0.1755141,83805.0,83804.0,0.22782167]
[1744793610004,0.1755141,83805.0,83804.0,0.22682167]
[1744793610203,0.1745141,83805.0,83804.0,0.22782167]
[1744793611800,0.2224141,83805.0,83804.0,0.22782167]
[1744793612107,0.1745141,83805.0,83804.0,0.22782167]
[1744793612303,0.1744341,83805.0,83804.0,0.22782167]
[1744793612603,0.5343141,83805.0,83804.0,0.22782167]
[1744793613595,0.5343141,83805.0,83804.0,0.22682167]
[1744793613795,0.5343141,83805.0,83804.0,0.22782167]
[1744793614304,0.1735141,83805.0,83804.0,0.0996]
[1744793615394,0.5343141,83805.0,83804.0,0.0996]
[1744793616004,0.5333141,83805.0,83804.0,0.0996]
[1744793616405,0.5333141,83805.0,83804.0,0.0509]
[1744793617105,0.5804141,83805.0,83804.0,0.0509]
[1744793618102,0.2196141,83805.0,83804.0,0.0509]
[1744793618303,0.5804141,83805.0,83804.0,0.0509]
[1744793621504,0.2196141,83805.0,83804.0,0.0509]
[1744793621709,0.00608,83805.0,83804.0,0.0509]
[1744793622016,0.00608,83805.0,83804.0,0.2002355]
[1744793622211,0.006,83805.0,83804.0,0.2002355]
[1744793622506,0.00608,83805.0,83804.0,0.2507355]
[1744793623807,0.00608,83805.0,83804.0,0.3380955]
[1744793624205,0.1253341,83805.0,83804.0,0.3380955]
[1744793624508,0.1254141,83805.0,83804.0,0.1114]
[1744793624710,0.1254141,83805.0,83804.0,0.1014]
[1744793624905,0.2226141,83805.0,83804.0,0.1014]
[1744793625797,0.2226141,83805.0,83804.0,0.2207355]
[1744793627411,0.2226141,83805.0,83804.0,0.001]
[1744793628404,0.2226141,83805.0,83804.0,0.1203355]
[1744793630004,0.2226141,83805.0,83804.0,0.001]
[1744793635216,0.2225341,83805.0,83804.0,0.1203355]
[1744793635411,0.2225341,83805.0,83804.0,0.001]
[1744793635412,0.2226141,83805.0,83804.0,0.001]
[1744793639108,0.2225341,83805.0,83804.0,0.001]
[1744793639420,0.2226141,83805.0,83804.0,0.001]
[1744793639908,0.5834141,83805.0,83804.0,0.001]
[1744793640108,0.5834141,83805.0,83797.0,0.00017903]
[1744793640109,0.1193441,83798.0,83797.0,0.00017903]
[1744793640311,0.1193626,83785.0,83784.0,0.170064]
[1744793640512,0.4801626,83785.0,83784.0,0.170064]
[1744793641016,0.5772626,83785.0,83784.0,0.170144]
[1744793641207,0.5772626,83785.0,83784.0,0.216444]
[1744793641413,0.5772626,83785.0,83784.0,0.119444]
[1744793641714,0.5772626,83785.0,83784.0,0.166244]
[1744793641908,0.5772626,83785.0,83784.0,0.04688]
[1744793642108,0.5772626,83785.0,83784.0,0.166164]
[1744793642311,0.5772626,83785.0,83784.0,0.04688]
[1744793642823,0.119364,83784.0,83783.0,0.00513228]
[1744793643010,0.480164,83784.0,83783.0,0.00513228]
[1744793643205,0.575464,83784.0,83783.0,0.00513228]
[1744793643405,0.575464,83784.0,83783.0,0.00521228]
[1744793644215,0.527864,83784.0,83783.0,0.12457778]
[1744793644414,0.167064,83784.0,83783.0,0.12457778]
[1744793644717,0.527864,83784.0,83783.0,0.22097778]
[1744793645212,0.167064,83784.0,83783.0,0.22097778]
[1744793645415,0.527864,83784.0,83783.0,0.10161228]
[1744793645613,0.576464,83784.0,83783.0,0.10261228]
[1744793646212,0.576464,83784.0,83783.0,0.22197778]
[1744793647920,0.576464,83784.0,83783.0,0.10261228]
[1744793649922,0.576464,83784.0,83783.0,0.05301228]
[1744793650420,0.527864,83784.0,83783.0,0.05301228]
[1744793650617,0.480164,83784.0,83783.0,0.17237778]
[1744793651010,0.480164,83784.0,83783.0,0.22187778]
[1744793651211,0.119364,83784.0,83783.0,0.22187778]
[1744793651406,0.480164,83784.0,83783.0,0.22187778]
[1744793651610,0.528664,83784.0,83783.0,0.10251228]
[1744793652013,0.578264,83784.0,83783.0,0.10251228]
[1744793652924,0.578264,83784.0,83783.0,0.22187778]
[1744793653127,0.578264,83784.0,83783.0,0.10251228]
[1744793653516,0.578264,83784.0,83783.0,0.22187778]
[1744793654023,0.528664,83784.0,83783.0,0.22187778]
[1744793655618,0.119364,83784.0,83783.0,0.22187778]
[1744793656812,0.480164,83784.0,83783.0,0.22187778]
[1744793657912,0.119364,83784.0,83783.0,0.22187778]
[1744793658917,0.480164,83784.0,83783.0,0.22187778]
[1744793662822,0.119364,83784.0,83783.0,0.22187778]
[1744793663028,0.480164,83784.0,83783.0,0.00621228]
[1744793663330,0.480164,83784.0,83776.0,0.00017903]
[1744793663331,0.119374,83777.0,83776.0,0.00017903]
[1744793663529,0.480174,83777.0,83776.0,0.00017903]
[1744793663729,0.576674,83777.0,83776.0,0.00017903]
[1744793664029,0.1193826,83771.0,83770.0,0.000108]
[1744793664221,0.1194011,83758.0,83757.0,0.00513387]
[1744793664423,0.8410011,83758.0,83757.0,0.00513387]
[1744793665027,0.8410011,83758.0,83751.0,0.000108]
[1744793665028,0.1194096,83752.0,83751.0,0.000108]
[1744793665224,0.1194139,83749.0,83748.0,0.17939639]
[1744793665425,0.4802139,83749.0,83748.0,0.29881169]
[1744793665618,0.4802139,83749.0,83728.0,0.06860956]
[1744793665823,0.119421,83744.0,83742.0,0.0508]
[1744793666022,0.119421,83744.0,83743.0,0.35896602]
[1744793666222,0.119421,83744.0,83743.0,0.40746602]
[1744793667035,0.119421,83744.0,83743.0,0.28804352]
[1744793667222,0.119421,83744.0,83743.0,0.23954352]
[1744793667223,0.121421,83744.0,83743.0,0.23954352]
[1744793667416,0.121421,83744.0,83743.0,0.35904602]
[1744793667630,0.121421,83744.0,83743.0,0.35896602]
[1744793667830,0.121421,83744.0,83743.0,0.1680025]
[1744793668123,0.121421,83744.0,83743.0,8e-05]
[1744793668325,0.122421,83744.0,83743.0,0.1195025]
[1744793668822,0.003,83744.0,83743.0,0.1665025]
[1744793669021,0.122421,83744.0,83743.0,0.1295025]
[1744793669322,0.122421,83744.0,83743.0,0.1195025]
[1744793669528,0.122421,83744.0,83743.0,8e-05]
[1744793670220,0.1194282,83739.0,83738.0,0.1655294]
[1744793670415,0.4802282,83739.0,83738.0,0.1655294]
[1744793670624,0.119431,83737.0,83736.0,0.0598235]
[1744793671225,0.219131,83737.0,83736.0,0.0598235]
[1744793671726,0.1194382,83732.0,83717.0,0.0597291]
[1744793671925,0.1194382,83732.0,83731.0,0.00524346]
[1744793671926,0.4802382,83732.0,83731.0,0.00524346]
[1744793672129,0.4802382,83732.0,83731.0,0.00513546]
[1744793672330,0.4802382,83732.0,83731.0,0.00521546]
[1744793672634,0.5723382,83732.0,83731.0,0.00521546]
[1744793673728,0.5723382,83732.0,83731.0,0.12465506]
[1744793673926,0.5310382,83732.0,83731.0,0.12565506]
[1744793674227,0.5310382,83732.0,83731.0,0.00621546]
[1744793675233,0.5310382,83732.0,83731.0,0.12565506]
[1744793675234,0.5330382,83732.0,83731.0,0.12565506]
[1744793676032,0.5330382,83732.0,83731.0,0.00621546]
[1744793676830,0.1194481,83725.0,83724.0,0.000108]
[1744793677132,0.1194567,83719.0,83718.0,0.0489]
[1744793677522,0.1194567,83719.0,83718.0,0.1683581]
[1744793677727,0.0597276,83721.0,83720.0,0.1194553]
[1744793678931,0.1194567,83719.0,83718.0,0.0971]
[1744793679838,0.1706567,83719.0,83718.0,0.0971]
[1744793680129,0.1706567,83719.0,83718.0,0.2165581]
[1744793680932,0.1706567,83719.0,83718.0,0.0971]
[1744793681133,0.1706567,83719.0,83718.0,0.2165581]
[1744793681829,0.001,83719.0,83718.0,0.2165581]
[1744793682031,0.0597193,83732.0,83718.0,0.1271]
[1744793682233,0.01196295,83734.0,83718.0,0.1271]
[1744793682234,0.11962444,83727.0,83726.0,0.1194467]
[1744793682531,0.00017914,83727.0,83726.0,0.2757467]
[1744793683031,0.11962444,83727.0,83726.0,0.2757467]
[1744793683729,0.12262444,83727.0,83726.0,0.2757467]
[1744793683935,0.12262444,83727.0,83726.0,0.1784467]
[1744793684137,0.17062444,83727.0,83726.0,0.1784467]
[1744793684327,0.17062444,83727.0,83726.0,0.2282267]
[1744793684832,0.12262444,83727.0,83726.0,0.2282267]
[1744793685030,0.12262444,83727.0,83726.0,8e-05]
[1744793685031,0.12362444,83727.0,83726.0,8e-05]
[1744793685236,0.17072444,83727.0,83726.0,0.1204467]
[1744793685535,0.21792444,83727.0,83726.0,0.1205267]
[1744793685740,0.21792444,83727.0,83726.0,0.2183267]
[1744793686029,0.12362444,83727.0,83726.0,0.1686267]
[1744793686233,0.17072444,83727.0,83726.0,0.1686267]
[1744793686633,0.12362444,83727.0,83726.0,0.1686267]
[1744793686834,0.12362444,83727.0,83726.0,0.1786267]
[1744793687138,0.00417914,83727.0,83726.0,0.2265267]
[1744793687530,0.00417914,83727.0,83726.0,0.2365267]
[1744793688529,0.00417914,83727.0,83726.0,0.5973267]
[1744793690634,0.00417914,83727.0,83726.0,0.5873267]
[1744793690828,0.00417914,83727.0,83726.0,0.5973267]
[1744793691031,0.00417914,83727.0,83726.0,0.5873267]
[1744793691332,0.00417914,83727.0,83726.0,0.5973267]
[1744793691524,0.12362444,83727.0,83726.0,0.5873267]
[1744793692126,0.12362444,83727.0,83726.0,0.5872467]
[1744793692440,0.12362444,83727.0,83726.0,0.5873267]
[1744793693130,0.00417914,83727.0,83726.0,0.2264467]
[1744793693447,0.00417914,83727.0,83726.0,0.2265267]
[1744793693733,0.12362444,83727.0,83726.0,0.2265267]
[1744793693935,0.00417914,83727.0,83726.0,0.2265267]
[1744793695231,0.00417914,83727.0,83726.0,0.2365267]
[1744793695735,0.12362444,83727.0,83726.0,0.1405267]
[1744793695935,0.17032444,83727.0,83726.0,0.2256267]
[1744793696126,0.17032444,83727.0,83726.0,0.2255467]
[1744793696332,0.17032444,83727.0,83726.0,0.2256267]
[1744793696632,0.17032444,83727.0,83726.0,0.2255467]
[1744793696942,0.17032444,83727.0,83726.0,0.2256267]
[1744793697639,0.22042444,83727.0,83726.0,0.048]
[1744793697844,0.22042444,83727.0,83726.0,0.04808]
[1744793698142,0.22042444,83727.0,83726.0,0.048]
[1744793698337,0.22042444,83727.0,83726.0,0.1675267]
[1744793698528,0.22042444,83727.0,83726.0,0.2156267]
[1744793700145,0.22042444,83727.0,83726.0,0.1675267]
[1744793700438,0.17032444,83727.0,83726.0,0.1675267]
[1744793700640,0.17032444,83727.0,83726.0,0.2173267]
[1744793701040,0.17032444,83727.0,83726.0,0.00108]
[1744793701230,0.17032444,83727.0,83726.0,0.1205267]
[1744793701435,0.22062444,83727.0,83726.0,0.1205267]
[1744793701739,0.22062444,83727.0,83726.0,0.2209267]
[1744793702846,0.05087914,83727.0,83726.0,0.2209267]
[1744793703141,0.05087914,83727.0,83726.0,0.2309267]
[1744793703531,0.17032444,83727.0,83726.0,0.2309267]
[1744793705339,0.21942444,83727.0,83726.0,0.2309267]
[1744793705742,0.21942444,83727.0,83726.0,0.11148]
[1744793706336,0.21942444,83727.0,83726.0,0.10148]
[1744793706733,0.21942444,83727.0,83726.0,0.2209267]
[1744793708842,0.21942444,83727.0,83726.0,0.00108]
[1744793709144,0.58022444,83727.0,83726.0,0.001]
[1744793709341,0.58022444,83727.0,83726.0,0.00108]
[1744793709642,0.58022444,83727.0,83726.0,0.001]
[1744793709844,0.58022444,83727.0,83726.0,0.00108]
[1744793710046,0.1194653,83713.0,83712.0,0.0001458]
[1744793710238,0.1194753,83706.0,83704.0,0.1194777]
[1744793710434,0.1194753,83706.0,83705.0,0.14461376]
[1744793710641,0.4802753,83706.0,83705.0,0.14461376]
[1744793711043,0.5781753,83706.0,83705.0,0.14461376]
[1744793711440,0.5781753,83706.0,83705.0,0.14469376]
[1744793711743,0.5781753,83706.0,83705.0,0.24269376]
[1744793713941,0.5791753,83706.0,83705.0,0.24669376]
[1744793714353,0.5791753,83706.0,83705.0,0.14869376]
[1744793715348,0.5791753,83706.0,83705.0,0.19769376]
[1744793715955,0.5791753,83706.0,83705.0,0.14869376]
[1744793716158,0.5781753,83706.0,83705.0,0.14469376]
[1744793716357,0.5791753,83706.0,83705.0,0.14769376]
[1744793716753,0.5791753,83706.0,83705.0,0.19669376]
[1744793716960,0.5791753,83706.0,83705.0,0.24469376]
[1744793717462,0.5791753,83706.0,83705.0,0.14769376]
[1744793718051,0.480253,83722.0,83705.0,0.38901706]
[1744793718255,0.11962824,83727.0,83717.0,0.3608]
[1744793718458,0.059724,83725.0,83724.0,0.1791729]
[1744793718656,0.059724,83725.0,83724.0,0.1891729]
[1744793719062,0.0457,83725.0,83724.0,0.2870729]
[1744793719361,0.00017914,83727.0,83726.0,0.1194467]
[1744793719566,0.00017914,83727.0,83726.0,0.1594467]
[1744793719861,0.00517914,83727.0,83726.0,0.2573467]
[1744793720565,0.00617914,83727.0,83726.0,0.2573467]
[1744793720966,0.00117914,83727.0,83726.0,0.2573467]
[1744793721963,0.04887914,83727.0,83726.0,0.2573467]
[1744793722264,0.04987914,83727.0,83726.0,0.2573467]
[1744793722765,0.17132444,83727.0,83726.0,0.2583467]
[1744793722953,0.17232444,83727.0,83726.0,0.2583467]
[1744793723155,0.05287914,83727.0,83726.0,0.2583467]
[1744793723665,0.04987914,83727.0,83726.0,0.2573467]
[1744793723966,0.05287914,83727.0,83726.0,0.2583467]
[1744793724362,0.04987914,83727.0,83726.0,0.2583467]
[1744793724559,0.05287914,83727.0,83726.0,0.2583467]
[1744793725466,0.17232444,83727.0,83726.0,0.2583467]
[1744793725969,0.05287914,83727.0,83726.0,0.2583467]
[1744793726166,0.04887914,83727.0,83726.0,0.2573467]
[1744793726463,0.17232444,83727.0,83726.0,0.2583467]
[1744793726763,0.17232444,83727.0,83726.0,0.2484267]
[1744793728558,0.17132444,83727.0,83726.0,0.2484267]
[1744793728863,0.17232444,83727.0,83726.0,0.2484267]
[1744793729560,0.17232444,83727.0,83726.0,0.2474267]
[1744793729763,0.17332444,83727.0,83726.0,0.2484267]
[1744793732059,0.22002444,83727.0,83726.0,0.2484267]
[1744793732258,0.21902444,83727.0,83726.0,0.2484267]
[1744793733468,0.00417914,83727.0,83726.0,0.2484267]
[1744793734368,0.00417914,83727.0,83726.0,0.2584267]
[1744793735555,0.00117914,83727.0,83726.0,0.2574267]
[1744793735766,0.00417914,83727.0,83726.0,0.2584267]
[1744793736260,0.00317914,83727.0,83726.0,0.2574267]
[1744793736669,0.0597077,83749.0,83738.0,0.0597147]
[1744793736962,0.1194049,83756.0,83755.0,0.0597026]
[1744793737268,0.059697,83763.0,83759.0,0.1193997]
[1744793737466,0.1243982,83760.0,83759.0,0.1293997]
[1744793737969,0.1243982,83760.0,83759.0,0.2769997]
[1744793738266,0.005,83760.0,83759.0,0.2769997]
[1744793738863,0.3608,83766.0,83765.0,0.1193911]
[1744793739063,0.3608,83766.0,83765.0,0.1293911]
[1744793739365,0.3608,83766.0,83765.0,0.2267911]
[1744793739563,0.4801897,83766.0,83765.0,0.1074]
[1744793739760,0.4801897,83766.0,83765.0,0.01]
[1744793739968,0.5728897,83766.0,83765.0,0.01]
[1744793740165,0.1213982,83760.0,83759.0,0.12818291]
[1744793740363,0.1213982,83760.0,83759.0,0.13818291]
[1744793740564,0.1193982,83760.0,83759.0,0.18548291]
[1744793741071,0.2120982,83760.0,83759.0,0.18548291]
[1744793742172,0.2140982,83760.0,83759.0,0.18548291]
[1744793742470,0.2200982,83760.0,83759.0,0.18648291]
[1744793743069,0.006,83760.0,83759.0,0.18648291]
[1744793743260,0.006,83760.0,83759.0,0.24548291]
[1744793743862,0.006,83760.0,83759.0,0.29258291]
[1744793745066,0.005,83760.0,83759.0,0.29258291]
[1744793745762,0.00017914,83768.0,83764.0,0.0596958]
[1744793745966,0.00017914,83768.0,83767.0,0.1193883]
[1744793746268,0.00017914,83768.0,83767.0,0.1293883]
[1744793746468,0.16526594,83768.0,83767.0,0.2261883]
[1744793746662,0.21106594,83768.0,83767.0,0.1293883]
[1744793747271,0.21106594,83768.0,83767.0,0.1294683]
[1744793747666,0.21606594,83768.0,83767.0,0.1304683]
[1744793747872,0.21806594,83768.0,83767.0,0.1304683]
[1744793749176,0.21806594,83768.0,83767.0,0.011]
[1744793749381,0.21806594,83768.0,83767.0,0.01108]
[1744793749569,0.21806594,83768.0,83767.0,0.011]
[1744793749770,0.21806594,83768.0,83767.0,0.00108]
[1744793751578,0.1791074,83757.0,83754.0,0.087]
[1744793751782,0.1435,83756.0,83755.0,0.1194039]
[1744793752282,0.3226074,83756.0,83755.0,0.1194039]
[1744793752480,0.3226074,83756.0,83755.0,0.1692039]
[1744793752776,0.3226074,83756.0,83755.0,0.1194039]
[1744793753479,0.0944,83756.0,83755.0,0.1194039]
[1744793753779,0.0944,83756.0,83755.0,0.1692039]
[1744793754080,0.2138039,83756.0,83755.0,0.2656039]
[1744793754478,0.2148039,83756.0,83755.0,0.2656039]
[1744793755079,0.2198039,83756.0,83755.0,0.2766039]
[1744793755477,0.2198039,83756.0,83755.0,0.30365165]
[1744793755678,0.2178039,83756.0,83755.0,0.30365165]
[1744793755873,0.2198039,83756.0,83755.0,0.30365165]
[1744793756874,0.2188039,83756.0,83755.0,0.30265165]
[1744793757178,0.0994,83756.0,83755.0,0.30265165]
[1744793757377,0.0532,83756.0,83755.0,0.30265165]
[1744793760078,0.0512,83756.0,83755.0,0.2756039]
[1744793760276,0.0522,83756.0,83755.0,0.2756039]
[1744793760470,0.0522,83756.0,83755.0,0.30265165]
[1744793760673,0.00025914,83768.0,83767.0,0.1193883]
[1744793760873,0.00025914,83768.0,83767.0,0.2793883]
[1744793761185,0.00113776,83768.0,83767.0,0.4212883]
[1744793761381,0.00113776,83768.0,83767.0,0.4312883]
[1744793761984,0.00121776,83768.0,83767.0,0.4312883]
[1744793762386,0.00621776,83768.0,83767.0,0.4322883]
[1744793763487,0.05541776,83768.0,83767.0,0.4322883]
[1744793764183,0.05241776,83768.0,83767.0,0.4322883]
[1744793764387,0.10191776,83768.0,83767.0,0.3264883]
[1744793764688,0.22130456,83768.0,83767.0,0.161]
[1744793764894,0.22130456,83768.0,83767.0,0.2803883]
[1744793765187,0.22026594,83768.0,83767.0,0.2804683]
[1744793765487,0.22026594,83768.0,83767.0,0.30751605]
[1744793765791,0.22122456,83768.0,83767.0,0.30751605]
[1744793768181,0.22122456,83768.0,83767.0,0.14751605]
[1744793769985,0.22026594,83768.0,83767.0,0.1203883]
[1744793770289,0.22026594,83768.0,83767.0,0.001]
[1744793770495,0.22122456,83768.0,83767.0,0.14743605]
[1744793771583,0.22122456,83768.0,83767.0,0.02804775]
[1744793772201,0.22122456,83768.0,83767.0,0.14743605]
[1744793772785,0.22122456,83768.0,83767.0,0.19693605]
[1744793772981,0.10183776,83768.0,83767.0,0.28963605]
[1744793773187,0.05433776,83768.0,83767.0,0.29963605]
[1744793773584,0.17380456,83768.0,83767.0,0.29963605]
[1744793774285,0.22220456,83768.0,83767.0,0.29963605]
[1744793774696,0.22220456,83768.0,83767.0,0.25333605]
[1744793775089,0.22116594,83768.0,83767.0,0.2262883]
[1744793775485,0.22212456,83768.0,83767.0,0.25333605]
[1744793776095,0.22212456,83768.0,83767.0,0.20701605]
[1744793776894,0.22212456,83768.0,83767.0,0.02812775]
[1744793777093,0.22212456,83768.0,83767.0,0.02804775]
[1744793777293,0.22212456,83768.0,83767.0,0.02812775]
[1744793777895,0.22312456,83768.0,83767.0,0.02812775]
[1744793778884,0.0596942,83767.0,83754.0,0.00899307]
[1744793779085,0.3608,83757.0,83749.0,0.0597069]
[1744793779290,0.1194096,83752.0,83749.0,0.0597069]
[1744793779500,0.13159077,83752.0,83749.0,0.00904936]
[1744793779708,0.22579077,83752.0,83749.0,0.00904936]
[1744793779991,0.22579077,83752.0,83748.0,0.1194151]
[1744793780193,0.22579077,83752.0,83738.0,0.119429]
[1744793780387,0.22579077,83752.0,83751.0,0.00125914]
[1744793780781,0.22579077,83752.0,83742.0,0.000108]
[1744793780782,0.1194225,83743.0,83742.0,0.000108]
[1744793780994,0.119431,83737.0,83736.0,0.0001458]
[1744793781190,0.1194382,83732.0,83723.0,0.0459]
[1744793781391,0.4802382,83732.0,83723.0,0.000108]
[1744793781584,0.4802382,83732.0,83719.0,0.2994294]
[1744793781782,0.5775382,83732.0,83731.0,0.00521546]
[1744793782382,0.1194467,83726.0,83719.0,0.2994294]
[1744793782586,0.4802467,83726.0,83719.0,0.2994294]
[1744793783097,0.059729,83719.0,83712.0,0.1194657]
[1744793783394,0.4802653,83713.0,83712.0,0.1194657]
[1744793783590,0.4802653,83713.0,83712.0,0.1195457]
[1744793784394,0.53866963,83713.0,83712.0,8e-05]
[1744793785196,0.1792099,83709.0,83708.0,0.1194718]
[1744793785395,0.1194738,83707.0,83706.0,0.1792101]
[1744793786090,0.2123738,83707.0,83706.0,0.18833032]
[1744793786395,0.2123738,83707.0,83706.0,0.06885742]
[1744793786591,0.2123738,83707.0,83706.0,0.00912022]
[1744793786797,0.1194753,83706.0,83705.0,0.00513706]
[1744793786994,0.5731753,83706.0,83705.0,0.00513706]
[1744793787191,0.5731753,83706.0,83705.0,0.00521706]
[1744793789400,0.5741753,83706.0,83705.0,0.01021706]
[1744793790185,0.4812753,83706.0,83705.0,0.17679376]
[1744793790592,0.4812753,83706.0,83705.0,0.17671376]
[1744793794193,0.4812753,83706.0,83703.0,0.06848559]
[1744793794194,0.1194824,83701.0,83700.0,0.1]
[1744793794589,0.2155824,83701.0,83700.0,0.1]
[1744793794789,0.2155824,83701.0,83700.0,0.10008]
[1744793794989,0.2155824,83701.0,83700.0,0.1]
[1744793795197,0.2155824,83701.0,83700.0,0.10008]
[1744793796305,0.1195124,83680.0,83657.0,0.0597725]
[1744793796500,0.8411124,83680.0,83677.0,0.00026572]
[1744793796706,0.8411124,83680.0,83678.0,0.046]
[1744793796903,0.8411124,83680.0,83679.0,0.05281865]
[1744793796904,0.8900124,83680.0,83679.0,0.05281865]
[1744793797103,0.8411124,83680.0,83679.0,0.05281865]
[1744793797305,0.8411124,83680.0,83679.0,0.17233245]
[1744793797306,0.1195124,83680.0,83679.0,0.17233245]
[1744793797694,0.1205124,83680.0,83679.0,0.22033245]
[1744793797894,0.4813124,83680.0,83679.0,0.22033245]
[1744793799797,0.5275124,83680.0,83679.0,0.22033245]
[1744793800502,0.1205124,83680.0,83679.0,0.23033245]
[1744793800903,0.1295105,83680.0,83679.0,0.23033245]
[1744793801201,0.1768105,83680.0,83679.0,0.23033245]
[1744793801397,0.1678124,83680.0,83679.0,0.23033245]
[1744793803197,0.5286124,83680.0,83679.0,0.06481865]
[1744793803400,0.5776124,83680.0,83679.0,0.06481865]
[1744793803601,0.5776124,83680.0,83679.0,0.05473865]
[1744793804204,0.5776124,83680.0,83679.0,0.17425245]
[1744793804507,0.5776124,83680.0,83679.0,0.17433245]
[1744793806106,0.5776124,83680.0,83679.0,0.22373245]
[1744793806997,0.001,83680.0,83679.0,0.22373245]
[1744793807206,0.3608,83697.0,83687.0,0.1195024]
[1744793807411,0.119492,83695.0,83687.0,0.1495024]
[1744793807707,0.3608,83697.0,83687.0,0.2951024]
[1744793807897,0.0597463,83694.0,83687.0,0.2951024]
[1744793808098,0.1194945,83693.0,83687.0,0.2951024]
[1744793808405,0.0597446,83697.0,83687.0,0.2951024]
[1744793808598,0.1194968,83691.0,83687.0,0.2951024]
[1744793808997,0.0597469,83693.0,83687.0,0.2951024]
[1744793809405,0.4205458,83695.0,83687.0,0.2951024]
[1744793809601,0.1194953,83692.0,83687.0,0.2951024]
[1744793810003,0.1194959,83692.0,83687.0,0.2951024]
[1744793810508,0.1194969,83691.0,83687.0,0.2951024]
[1744793811100,0.0597394,83704.0,83687.0,0.2961024]